{"text_format":"3","workbook":"xlsx","n_sheets":9,"sheets":["CATEGORY A","CATEGORY B","CATEGORY C","CATEGORY D","CATEGORY E","CATEGORY F","CATEGORY G","BRANDING","Sheet1"],"not_rendered":{"images":1},"read":"whole","date_system":"1900"}

{"sheet":"CATEGORY A","index":0,"n_rows":12,"n_cols":32,"rows_kept":12,"merged":[[0,0,0,12],[1,1,1,12],[1,13,2,29],[2,1,2,12],[3,0,3,2],[3,4,3,4],[3,13,3,19],[3,20,3,22],[3,23,3,28],[3,29,3,31]]}
["Bidder's Name:_________________________________"]
[null,"THE MANUFACTURE, SUPPLY AND DELIVERY OF PERSONAL PROTECTIVE EQUIPMENT, SAFETY WEAR AND CLOTHING TO THE EASTERN CAPE PROVINCIAL GOVERNMENT FOR THE PERIOD OF 36 MONTHS\nCONTRACT MANAGER:___Zilindile Bobani_______________________:E-MAIL: zilindile.bobani@ectreasury.gov.za"]
[null,"NOTES REGARDING PRICING:\n1. Bidders to complete the excel version. This is a compulsory requirements.\n2. Bidders must refer to item description and specifications before completing the pricing schedule.\n3. The quoted prices Must be inclusive of 15% VAT and all the other related costs (Direct and Indirect costs). No additional costs will considered post award.\n4. Prices  MUST be completed for all the items \n5. Indices - List measurable indices/factors that contribute to cost escalation.\n6. All prices are subjects to negotiation with preffered and shortlisted bidder prior to signing of the contract.\n7. Offer to be valid for 180 days from closing date of bid.\n8. Bidders to ensure that Colunm Q indicates TRUE. If FALSE mean bidder inserted a full stop on the price.\n9. Bidders to complete only the YELLOW Colunms\n"]
["ITEM INFORMATION",{"$nulls":11},"PRICE","COST COMPONENT",{"$nulls":9},"FABRIC MANUFACTURE",{"$nulls":5},"GARMENT INFORMATION"]
["No","ITEM","ITEM DESCRIPTION","Standard/s","UNIT OF MEASURE","PRICE PER UNIT INCLUSIVE OF 15% VAT (Size- S)","PRICE PER UNIT INCLUSIVE OF 15% VAT (Size- M)","PRICE PER UNIT INCLUSIVE OF 15% VAT (Size- L)","PRICE PER UNIT INCLUSIVE OF 15% VAT (Size- XL)","PRICE PER UNIT INCLUSIVE OF 15% VAT (Size- XXL)","PRICE PER UNIT INCLUSIVE OF 15% VAT (Size- XXXL)","PRICE PER UNIT INCLUSIVE OF 15% VAT (Size- XXXXL)","PRICE PER UNIT INCLUSIVE OF 15% VAT (Size- XXXXXL)","D1 – IMPORTED RAW MATERIAL / FINISHED PRODUCT","D2 - LOCAL RAW MATERIAL / FINISHED PRODUCTS (IF APPLICABLE)","D3 – LABOUR","D4 – TRANSPORT","D5 – OVERHEADS ","D6 – OTHER","TOTAL (COST COMPONENTS MUST ADD UP TO 100%)","Manufacture name/third party name","COUNTRY OF ORIGIN","VERIFICATION NUMBER ","NAME OF FABRIC/COMBINATION OF FABRICS","FABRIC COMPLIANCE CERTIFICATE/LETTER FROM FABRIC MANUFACUTURE ATTACHED? YES OR NO","NAME OF FABRIC MANUFACTURE/MILL","CAPABILITY REPORT OF FABRIC MANUFACTURE/MILL ATTACHED? YES OR NO","FABRIC OR COMPONENT OF FABRIC IMPORTED?  YES OR NO","DTIC EXEMPTION LETTER ATTACHED? YES OR NO","ITEM DECLARED ON ANNEXURE C OF SBD 6.2? YES OR NO","GARMENT ITEM PROCURED FROM OWN FACTORY (RESPONSE -  YES OR NO)","GARMENT ITEM APPEARING ON CAPABILITY REPORT? YES OR NO"]
[0,null,"Fabric",null,null,{"v":2,"d":"R2.00"},{"v":2,"d":"R2.00"},{"v":2,"d":"R2.00"},{"v":2,"d":"R2.00"},{"v":2,"d":"R2.00"},{"v":2,"d":"R2.00"},{"v":2,"d":"R2.00"},{"v":2,"d":"R2.00"},60,null,15,10,15,null,100,null,"SA",true]
[1,"ISOLATION GOWN","Isolation Gown: Protective 3-layers of spun-bond melt-blown spun-bond fabric (top layer of spun-bond polypropylene; a middle layer of meltdown polypropylene and bottom layer of meltdown polypropylene for light fluid contact and contact isolation; elastic cuff; tape-tab neck closure; tie waist, non-sterile dimensions: extra large\nlength: (from shoulder to hem) 127cm;sleeve length: (from shoulder to wrist) 56cm;\nbelt length: 172cm; belt width: 5cm; belt place: (neck to top of belt) 38-39cm.\n50 gsm\nColour: Blue\nSize: S-5XL"," 53795:2015","EACH ",{"$nulls":14},{"$f":"N7+O7+P7+Q7+R7+S7","v":0},null,null,{"$f":"SUMPRODUCT(--ISNUMBER(F7:G7:H7:I7:J7:K7:L7:M7))>0","v":false}]
[2,"SURGICAL, NON-WOVEN POLYPROPYLENE","Surgical, non-woven: Polypropylene, long sleeves with cuffs; re-in forced in chest and forearm areas; resistant to liquid penetration; lint free; non-flammable; bacteria barrier efficiency to comply with SANS 53795; sterile, individual double peel packed.\n\nSizes: S-5XL"," 53795:2015","EACH ",{"$nulls":14},{"$f":"N8+O8+P8+Q8+R8+S8","v":0},null,null,{"$f":"SUMPRODUCT(--ISNUMBER(F8:G8:H8:I8:J8:K8:L8:M8))>0","v":false}]
[3,"RE-USABLE THEATRE GOWNS","Re-usable theather gowns: Medical grade; fabric must withstand frequent laundering in hot water; 100% cotton or reinforced polycotton; fasten at the back with two ties (neck and lower back); long sleeved and cuffed.                                                                                                                                                                                                                                                                                                                                                                                                                                                                                                                                                                                                                                                                                                                  Sizes: S-5XL","53795:2015","EACH ",{"$nulls":14},0,null,null,{"$f":"SUMPRODUCT(--ISNUMBER(F9:G9:H9:I9:J9:K9:L9:M9))>0","v":false}]
[4,"DISPOSABLE COVERALLS ","Disposable Coveralls : Protective Cover Bodysuits, Disposable; Protective 3-layers of spun-bond melt-blown spun-bond fabric (top layer of spun-bond polypropylene.\n\nSIZE:S-5XL","53795:2015","EACH ",{"$nulls":14},0,null,null,{"$f":"SUMPRODUCT(--ISNUMBER(F10:G10:H10:I10:J10:K10:L10:M10))>0","v":false}]
[5,"SCRUB SUIT","Scrub Suit - Fabric:  TCC 606 65/35 – 160gsm\nTop\nShort Sleeve V-Neck\nSide Silts\nFront Yoke\nLeft Breast Patch Pocket\n2 Front Patch Pockets\n\nPants\nRight Back Patch Pocket\nFully Elasticated Waist\nSize: S -5XL","13872:2017","EACH ",{"$nulls":14},0,null,null,{"$f":"SUMPRODUCT(--ISNUMBER(F11:G11:H11:I11:J11:K11:L11:M11))>0","v":false}]
[6,"BOOT COVERS","Boot Covers- Overshoe non-woven single use. To be made from durable water-resistant water repellent opaque material, seam free under sole.","N/A","BOX OF 100 PIECES ",{"$nulls":14},0,null,null,{"$f":"SUMPRODUCT(--ISNUMBER(F12:G12:H12:I12:J12:K12:L12:M12))>0","v":false}]

{"sheet":"CATEGORY B","index":1,"n_rows":33,"n_cols":32,"rows_kept":33,"merged":[[0,0,0,2],[1,0,1,2],[1,13,2,31],[2,0,2,2],[3,0,3,2],[3,5,3,12],[3,13,3,19],[3,20,3,22],[3,23,3,28],[3,29,3,31],[6,1,9,1],[12,1,17,1],[23,1,24,1],[25,1,26,1],[29,1,32,1]]}
["Bidder's Name:_________________________________"]
["THE MANUFACTURE, SUPPLY AND DELIVERY OF PERSONAL PROTECTIVE EQUIPMENT, SAFETY WEAR AND CLOTHING TO THE EASTERN CAPE PROVINCIAL GOVERNMENT FOR THE PERIOD OF 36 MONTHS\nCONTRACT MANAGER:___Zilindile Bobani_______________________:E-MAIL: zilindile.bobani@ectreasury.gov.za"]
["NOTES REGARDING PRICING:\n1. Bidders to complete the excel version. This is a compulsory requirements.\n2. Bidders must refer to item description and specifications before completing the pricing schedule.\n3. The quoted prices Must be inclusive of 15% VAT and all the other related costs (Direct and Indirect costs). No additional costs will considered post award.\n4. Prices  MUST be completed for all the items \n5. Indices - List measurable indices/factors that contribute to cost escalation.\n6. All prices are subjects to negotiation with preffered and shortlisted bidder prior to signing of the contract.\n7. Offer to be valid for 180 days from closing date of bid.\n8. Bidders to ensure that Colunm Q indicates TRUE. If FALSE mean bidder inserted a full stop on the price.\n9. Bidders to complete only the YELLOW Colunms\n"]
["ITEM INFORMATION",{"$nulls":4},"PRICE",{"$nulls":7},"COST COMPONENT",{"$nulls":9},"FABRIC MANUFACTURE",{"$nulls":5},"GARMENT INFORMATION"]
["No","ITEM CODE","ITEM DESCRIPTION","STANDARD/S","UNIT OF MEASURE","PRICE PER UNIT INCLUSIVE OF 15% VAT (Size- S)","PRICE PER UNIT INCLUSIVE OF 15% VAT (Size- M)","PRICE PER UNIT INCLUSIVE OF 15% VAT (Size- L)","PRICE PER UNIT INCLUSIVE OF 15% VAT (Size- XL)","PRICE PER UNIT INCLUSIVE OF 15% VAT (Size- XXL)","PRICE PER UNIT INCLUSIVE OF 15% VAT (Size- XXXL)","PRICE PER UNIT INCLUSIVE OF 15% VAT (Size- XXXXL)","PRICE PER UNIT INCLUSIVE OF 15% VAT (Size- XXXXL)","D1 – IMPORTED RAW MATERIAL / FINISHED PRODUCT","D2 - LOCAL RAW MATERIAL / FINISHED PRODUCTS (IF APPLICABLE)","D3 – LABOUR","D4 – TRANSPORT","D5 – OVERHEADS ","D6 – OTHER","TOTAL (COST COMPONENTS MUST ADD UP TO 100%)","Manufacture name/third party name","COUNTRY OF ORIGIN","VERIFICATION NUMBER ","NAME OF FABRIC/COMBINATION OF FABRICS","FABRIC COMPLIANCE CERTIFICATE/LETTER FROM FABRIC MANUFACUTURE ATTACHED? YES OR NO","NAME OF FABRIC MANUFACTURE/MILL","CAPABILITY REPORT OF FABRIC MANUFACTURE/MILL ATTACHED? YES OR NO","FABRIC OR COMPONENT OF FABRIC IMPORTED?  YES OR NO","DTIC EXEMPTION LETTER ATTACHED? YES OR NO","ITEM DECLARED ON ANNEXURE C OF SBD 6.2? YES OR NO","GARMENT ITEM PROCURED FROM OWN FACTORY (RESPONSE -  YES OR NO)","GARMENT ITEM APPEARING ON CAPABILITY REPORT? YES OR NO"]
[0,null,"Fabric",null,null,{"v":2,"d":"R2.00"},{"v":2,"d":"R2.00"},{"v":2,"d":"R2.00"},{"v":2,"d":"R2.00"},{"v":2,"d":"R2.00"},{"v":2,"d":"R2.00"},{"v":2,"d":"R2.00"},{"v":2,"d":"R2.00"},60,null,15,10,15,null,100,null,"SA",true]
[7,"BOILER SUITS","Boiler Suits- Elasticated hood; concealed durable nylon or chunky zip to neck;\ncomfortable ragian sleeve design; long sleeves with elastic cuffs;\nwide shaped legs for ease of movement; elasticated bottom hem; and \nsafety stitched seams.Price must include branding with standard departmental logo.\n\nFabric:\nOxford water and wind resistant antibacterial fabric specially designed for comfort and durability. Must have quilted lining with micro fibre.\n100% polyester\n2/1 z twill – 150 gsm\nantistatic, fluid hypellent pharmaceutical and medical grade fabric.","N/A","EACH",{"$nulls":14},{"$f":"N7+O7+P7+Q7+R7+S7","v":0},null,null,{"$f":"SUMPRODUCT(--ISNUMBER(F7:G7:H7:I7:J7:K7:L7:M7))>0","v":false}]
[8,null,"Boiler Suits- 1 piece overall (jump suite) 100% cotton CJ54 220gsm navy, with silver/lime reflective tape (50mm) on arms and legs, two slanted pockets in front, front zip (YKK) for opening, back to be elasticated waist band, front to have attached waist band, must be triple stitched and bartacked at all stress points for strength, front must have two chest pockets. Pockets must have a vflap with conceal press studs. Sleeve cuffs must be elasticated.Price must include branding with standard departmental logo.","1387-4:2017","EACH",{"$nulls":14},{"$f":"N8+O8+P8+Q8+R8+S8","v":0},null,null,{"$f":"SUMPRODUCT(--ISNUMBER(F8:G8:H8:I8:J8:K8:L8:M8))>0","v":false}]
[9,null,"One piece overall (jump suite) 100% cotton D59 (Flame Retardant/Acid Resistant) 320gsm navy/bottle green with silver/lime reflective tape(Retardant/Acid Resistant) (50mm) on arms, and legs, two slanted pockets in front, front zip(YKK) for opening, back to be elasticated waist band at the back, front to have attached waist band, must be triple stitched and bartacked at all stress points for strength,front must have two chest pockets. Pockets must have a vflap with conceal press studs. Sleeve cuffs must be elasticated.Price must include branding with standard departmental logo.","1387-4:2017","EACH",{"$nulls":14},0,null,null,{"$f":"SUMPRODUCT(--ISNUMBER(F9:G9:H9:I9:J9:K9:L9:M9))>0","v":false}]
[10,null,"Boiler Suits- 1 piece overall (jump suite) 100% cotton D59 (Retardant/Acid Resistant) 320gsm navy, with silver/lime reflective tape (50mm) on arms and legs, two slanted pockets in front, front zip (YKK) for opening, back to be elasticated waist band, front to have attached waist band, must be triple stitched and bartacked at all stress points for strength, front must have two chest pockets. Pockets must have a vflap with conceal press studs. Sleeve cuffs must be elasticated.Price must include branding with standard departmental logo.","1387-4:2017","EACH",{"$nulls":14},0,null,null,{"$f":"SUMPRODUCT(--ISNUMBER(F10:G10:H10:I10:J10:K10:L10:M10))>0","v":false}]
[11,"CARGO PANTS","Cargo Pants- 100% cotton 220gsm (CJ54); 2x side swing pockets; right pocket has a coin pocket;\n 2x mitred back pocket; 2x mitred cargo pocket; mitred flaps with velco; double stitched pockets; triple stitched seams; metal button and brass zips.\nColours : All\nSizes 30-50","1387-4:2017","EACH",{"$nulls":14},0,null,null,{"$f":"SUMPRODUCT(--ISNUMBER(F11:G11:H11:I11:J11:K11:L11:M11))>0","v":false}]
[12,"CARGO SKIRT","Cargo Skirt- 100% cotton CJ54 fabric; 220gsm; front slant or curved pockets; metal shank button; rivet soon pocket edges for extra strength; double needle stitching on centre front seam and back rise; back jet/patch pockets; back slit (20cm) for ease of movement. Colour : Navy, Caramel,Fern, Black and Khakhi.\n\nSizes: 30-50","1387-4:2017","EACH",{"$nulls":14},0,null,null,{"$f":"SUMPRODUCT(--ISNUMBER(F12:G12:H12:I12:J12:K12:L12:M12))>0","v":false}]
[13,"CONTI SUITS","Jacket (conti suits), material composition: 100% cotton; Fabric: CJ54, colour orange colour code: pantone 376c. Branding: departmental logo on front (jacket) and EPWP at the back of the jacket; Reflective Tape: Lime /orange (50mm) and silver (25mm) of reflective tape all around the waistline and arms; mass: 220 gsm; overall must be triple stitched and bar tacked at all stress point for strength; zip are YKK  Sleeve cuffs must be elasticated.Price must include branding with standard departmental logo.\nOne top left chest pocket with flap and two front patch pockets.\nPants (conti suits); material composition: 100% cotton. Fabric: CJ54; quality standard: sabs (fabric),\nColour: orange, colour code: pantone 376c,\nReflective Tape: Lime /orange (50mm) and silver (25mm) on both legs mass: 220 gsm; two slanted pockets; plain front; plain bottom hem back to be stitched with elastic webbing; front to have separate waist band to fasten with a button and button hole; b overall must be triple stitched and bar tacked at all stress point with YKK zip for strength. \n(other colours: royal blue, beige, emerald green, Two tone (botte green and Kakhi/Stone) Sizes 30-50\n","1387-4:2017","EACH",{"$nulls":14},0,null,null,{"$f":"SUMPRODUCT(--ISNUMBER(F13:G13:H13:I13:J13:K13:L13:M13))>0","v":false}]
[14,null,"Jacket (conti suits), material composition: 100% cotton; Fabric: CJ54, colour navy Branding: departmental logo on front (jacket) and EPWP at the back of the jacket; Reflective: Silver 50mm reflective Tape all around the waistline and arms; mass: 220 gsm; overall must be triple stitched and bar tacked at all stress point for strength; zip are YKK and price must include branding and reflective tape. Sleeve cuffs must be elasticated.\nOne top left chest pocket with flap and two front patch pockets.\nPants (conti suits); material composition: 100% cotton. Fabric: CJ54; quality standard: sabs (fabric),\nReflective Tape: Silver 50mm reflective Tape on both legs mass: 220 gsm; two slanted pockets; plain front; plain bottom hem back to be stitched with elastic webbing; front to have separate waist band to fasten with a button and button hole; b overall must be triple stitched and bar tacked at all stress point with YKK zip for strength. \n(other colours: orange royal blue, beige, green, Two tone (botte green and Kakhi/Stone) Sizes 30-50","1387-4:2017","EACH",{"$nulls":14},{"$f":"N14+O14+P14+Q14+R14+S14","v":0},null,null,{"$f":"SUMPRODUCT(--ISNUMBER(F14:G14:H14:I14:J14:K14:L14:M14))>0","v":false}]
[15,null,"Jacket (conti suits), material composition: 100% cotton; Fabric: CJ54,mass:220gsm colour orange colour code: pantone 376c. Branding: departmental logo on front (jacket) and EPWP at the back of the jacket; NO REFLECTIVE TAPE;  overall must be triple stitched and bar tacked at all stress point for strength; zip are YKK..Sleeve cuffs must be elasticated\nOne top left chest pocket with flap and two front patch pockets.\nPants (conti suits); material composition: 100% cotton. Fabric: CJ54; quality standard: sabs (fabric),\nColour: orange, colour code: pantone 376c,mass:220gsm;\nNO REFLECTIVE TAPE 220 gsm; two slanted pockets; plain front; plain bottom hem back to be stitched with elastic webbing; front to have separate waist band to fasten with a button and button hole; b overall must be triple stitched and bar tacked at all stress point with YKK zip for strength. Price must include branding.\n(other colours: royal blue, beige, green, Two tone (botte green and Kakhi/Stone) Sizes 30-50",null,"EACH"]
[16,null,"Jacket (conti suits), material composition: 100% cotton; Fabric: D59 (Flame Retardant/Acid Resistant) 320gsm colour navy Branding: departmental logo on front (jacket) and EPWP at the back of the jacket; Reflective: Silver 50mm reflective Tape (Flame Retardant/Acid Resistant) all around the waistline and arms; mass: 220 gsm; overall must be triple stitched and bar tacked at all stress point for strength; zip are YKK and price must include branding and reflective tape.Sleeve cuffs must be elasticated.Price must include branding with standard departmental logo.\nOne top left chest pocket with flap and two front patch pockets.\nPants (conti suits); material composition: 100% cotton. Fabric: D59; quality standard: sabs (fabric)\nReflective Tape: Lime / silver 50mm reflective strips on both legs mass: 220 gsm; two slanted pockets; plain front; plain bottom hem back to be stitched with elastic webbing; front to have separate waist band to fasten with a button and button hole; b overall must be triple stitched and bar tacked at all stress point with YKK zip for strength. Price must include branding and reflective tape.\n(other colours: royal blue, beige, green, Two tone (botte green and Kakhi/Stone)          Sizes 30-50",null,"EACH"]
[17,null,"Jacket (conti suits), material composition: 100% cotton; Fabric: D59  320gsm colour navy Branding: departmental logo on front (jacket) and EPWP at the back of the jacket; Reflective: Silver / lime /orange 50mm reflective Tape all around the waistline and arms; overall must be triple stitched and bar tacked at all stress point for strength; zip are YKK and Sleeve cuffs must be elasticated.\nOne top left chest pocket with flap and two front patch pockets.\nPants (conti suits); material composition: 100% cotton. Fabric: D59; quality standard: sabs (fabric)\nReflective Tape: Lime / silver 50mm reflective strips on both legs mass: 220 gsm; two slanted pockets; plain front; plain bottom hem back to be stitched with elastic webbing; front to have separate waist band to fasten with a button and button hole; b overall must be triple stitched and bar tacked at all stress point with YKK zip for strength. Price must include branding with standard departmental logo.\n(other colours: royal blue, beige, green, Two tone (botte green and Kakhi/Stone) Sizes 30-50",null,"EACH"]
[18,null,"Jacket (conti suits), material composition: 100% cotton; Fabric: D59  320gsm . Branding: departmental logo on front (jacket) and EPWP at the back of the jacket; NO REFLECTIVE TAPE:  overall must be triple stitched and bar tacked at all stress point for strength; zip are YKK and price must include branding and reflective tape.Sleeve cuffs must be elasticated\nOne top left chest pocket with flap and two front patch pockets.\nPants (conti suits); material composition: 100% cotton. Fabric: D59; quality standard: sabs (fabric)\nNO REFLECTIVE TAPE ; two slanted pockets; plain front; plain bottom hem back to be stitched with elastic webbing; front to have separate waist band to fasten with a button and button hole; b overall must be triple stitched and bar tacked at all stress point with YKK zip for strength. Price must include branding with standard departmental logo.\n(other colours: royal blue, beige, green, Two tone (botte green and Kakhi/Stone) Sizes 30-50",null,"EACH"]
[19,"DENIM CONTI SUITS","Jacket (conti suits), material composition: 100% cotton; Fabric:Denim  220gsm . Branding: departmental logo on front (jacket) and EPWP at the back of the jacket; NO REFLECTIVE TAPE: overall must be triple stitched and bar tacked at all stress point for strength; zip are YKK and price must include branding and reflective tape.Sleeve cuffs must be elasticated\nOne top left chest pocket with flap and two front patch pockets.Price must include branding with standard departmental logo.\nPants (conti suits); material composition: 100% cotton. Fabric:Denim\nNO REFLECTIVE TAPE  two slanted pockets; plain front; plain bottom hem back to be stitched with elastic webbing; front to have separate waist band to fasten with a button and button hole; b overall must be triple stitched and bar tacked at all stress point with YKK zip for strength. \n(other colours: Black Sizes 30-50",null,"EACH"]
[20,"DENIM CONTI SUITS","Jacket (conti suits), material composition: 100% cotton; Fabric: Denim 220gsm colour navy Branding: departmental logo on front (jacket) and EPWP at the back of the jacket; Reflective: Silver / lime /orange 50mm reflective Tape all around the waistline and arms; mass: 220 gsm; overall must be triple stitched and bar tacked at all stress point for strength; zip are YKK and Sleeve cuffs must be elasticated.Price must include branding with standard departmental logo.\nOne top left chest pocket with flap and two front patch pockets.\nPants (conti suits); material composition: 100% cotton. Fabric : Denim\nReflective Tape: Lime / silver 50mm reflective strips on both legs ; two slanted pockets; plain front; plain bottom hem back to be stitched with elastic webbing; front to have separate waist band to fasten with a button and button hole; b overall must be triple stitched and bar tacked at all stress point with YKK zip for strength. \nother colours: Black Sizes 30-50","1387-4:2017","EACH",{"$nulls":14},0,null,null,{"$f":"SUMPRODUCT(--ISNUMBER(F20:G20:H20:I20:J20:K20:L20:M20))>0","v":false}]
[21,"DENIM SKIRT","Denim Skirt- 100% cotton; 220gsm; front slant or curved pockets; metal shank button; rivets on pocket edges for extra strength; double needle stitching on centre front seam and back rise; back jet/patch pockets; back slit (20 cm) for ease of movement. \nColour: Navy, Caramel, Fern, Black and Khakhi\nSize: 30-50","1387-4:2017","EACH",{"$nulls":14},0,null,null,{"$f":"SUMPRODUCT(--ISNUMBER(F21:G21:H21:I21:J21:K21:L21:M21))>0","v":false}]
[22,"CHEF COAT APRON, DUK AND PANTS (4 PIECE SET)","Chef Coat Apron, Duk And Pants (4 Piece Set)- 100% CJ54 220 gsm double breasted with detachable stud button in black or white;\nlong sleeve includes pen pocket on the sleeve; back neck apron clip to secure bib  apron; roll back french cuffs.Price must include branding with standard departmental logo.\n\n100% CJ54 220 gms unisex chef pants durable; fabric treated with stain and wrinkle resistant finish; design with same relax fit with slightly tempered ankle; elastic waistband with built-in draw string allows for comfortable and secure waistline.\n","1387-4:2017","EACH",{"$nulls":14},0,null,null,{"$f":"SUMPRODUCT(--ISNUMBER(F22:G22:H22:I22:J22:K22:L22:M22))>0","v":false}]
[23,"DUSTCOAT","Dustcoat- Jacket:  CJ54,220gsm ; Comfortable Open Neck Collar; Visible Plastic Buttons; 1x Square Breast Pocket; 2x Square Bottom Pockets; Long Sleeves; Hemmed Cuffs; Half Back With Vent Safety Stitched Seams.Price must include branding with standard departmental logo.\nColour: All \nSize: S - 5XL","1387-4:2017","EACH",{"$nulls":14},0,null,null,{"$f":"SUMPRODUCT(--ISNUMBER(F23:G23:H23:I23:J23:K23:L23:M23))>0","v":false}]
[24,"T-SHIRT (UNISEX)","T-Shirt (UNISEX)- Short sleeve shirt Unisex:\n100% cotton, 145gsm, rib crew neck with taped neckline for comfort; Straight cut sides for a more comfortable fit; Durable double stitching on sleeves and bottom hem; modernized dropped shoulder.\nshirt, long sleeve, slim fit, unisex. specification: departmental emblem(departmental emblem embroidered on left chest pocket). \nColour: All\n\nSizes: S-5XL ","1387-4:2017","EACH",{"$nulls":14},0,null,null,{"$f":"SUMPRODUCT(--ISNUMBER(F24:G24:H24:I24:J24:K24:L24:M24))>0","v":false}]
[25,null,"T-Shirt (UNISEX)- Long sleeve shirt Unisex:\n100% cotton, 145gsm, rib crew neck with taped neckline for comfort; Straight cut sides for a more comfortable fit; Durable double stitching on sleeves and bottom hem; modernized dropped shoulder.\nshirt, long sleeve, slim fit, unisex. specification: departmental emblem(departmental emblem embroidered on left chest pocket). \nColour: All\n\nSizes: S-5XL ","1387-4:2018","EACH",{"$nulls":17},{"$f":"SUMPRODUCT(--ISNUMBER(F25:G25:H25:I25:J25:K25:L25:M25))>0","v":false}]
[26,"GOLF SHIRTS","Golf Shirts- Short sleeve: 100% cotton, 195gsm; rib-knit collar; cool and breathable with an open sport sleeves, 2x button constructed placket with matching buttons. \nColours: All\nSizes : S - 5XL","1387-4:2017","EACH",{"$nulls":17},{"$f":"SUMPRODUCT(--ISNUMBER(F26:G26:H26:I26:J26:K26:L26:M26))>0","v":false}]
[27,null,"Golf Shirts- Long sleeve: 100% cotton, 195gsm; rib-knit collar; cool and breathable with an open sport sleeves, 2x button constructed placket with matching buttons. Price must include branding with standard departmental logo.\nColours: All\nSizes : S - 5XL","1387-4:2017","EACH",{"$nulls":17},{"$f":"SUMPRODUCT(--ISNUMBER(F27:G27:H27:I27:J27:K27:L27:M27))>0","v":false}]
[28,"LADIES 3 PIECE","Ladies 3 Piece- LADIES(J54), 220gsm; canteen: comfortable open neck collar, visible clear plastic buttons, 6 bottoms down; v-shaped breast pocket; 1x square right hip pocket; wide short sleeves for ease of movement and comfort fit safety stitched seams.Price must include branding with standard departmental logo.\n\nHalf apron : long bind waist strap.\nHead scarf (doek)\nColours: All\nSize:S -5XL","1387-4:2017","EACH",{"$nulls":14},0,null,null,{"$f":"SUMPRODUCT(--ISNUMBER(F28:G28:H28:I28:J28:K28:L28:M28))>0","v":false}]
[29,"WORK JEANS","Work Jeans- 100% cotton denim 2 x side swing pockets, 1 front side swing pocket has a coin pocket, 2 x back large pockets, double stitched pockets, triple needle stitched seam. metal button, brass YKK zip, 50mm yellow and silver reflective tape at knee high level. options: colours: indigo \nSizes 30-50","1387-4:2017","EACH",{"$nulls":17},{"$f":"SUMPRODUCT(--ISNUMBER(F29:G29:H29:I29:J29:K29:L29:M29))>0","v":false}]
[30,"WORK SHIRT","100% cotton TCJ73 170gsm, back yoke with vent, hanger loop, 2 x mildred breast pocket, mildred flaps with visible plastic bottoms. left breast pocket has a pen division. visible plastic button closed.long sleeve with cuffs and  plastic buttons. double stitched pockets. triple stitches seams. 50mm silver reflective tape: on arms 2x around waist. options: Colours:All; two toned: orange/navy, lime/navy, navy/grey.\nPrice must include branding with standard departmental logo.\n\nSize: S- 5XL","1387-4:2017","EACH"]
[31,null,"100% cotton TCJ73 170gsm,  back yoke with vent, hanger loop,  2 x mildred breast pocket, mildred flaps  with visible plastic bottoms. left breast pocket has a pen division. visible plastic button closed.long sleeve with cuffs and  plastic buttons. double stitched pockets. triple stitches seams. NO REFLECTIVE TAPE: on arms 2x around waist. options: Colours:All; two toned: orange/navy, lime/navy, navy/grey.\nPrice must include branding with standard departmental logo.\n\nSize: S- 5XL","1387-4:2017","EACH"]
[32,null,"100%  Soft DENIM , back yoke with vent, hanger loop, 2 x mildred breast pocket, mildred flaps with visible plastic bottoms. left breast pocket has a pen division. visible plastic button closed.long sleeve with cuffs and  plastic buttons. double stitched pockets. triple stitches seams. 50mm silver reflective tape: on arms 2x around waist. options: Colours:All; two toned: orange/navy, lime/navy, navy/grey.Proce must include branding with standard departmental logo.Size:S-5XL","1387-4:2017","EACH"]
[33,null,"100%  Soft DENIM , back yoke with vent, hanger loop,  2 x mildred breast pocket, mildred flaps  with visible plastic bottoms. left breast pocket has a pen division. visible plastic button closed.long sleeve with cuffs and  plastic buttons. double stitched pockets. triple stitches seams. NO REFLECTIVE TAPE: on arms 2x around waist. options: Colours:All; two toned: orange/navy, lime/navy, navy/grey.\nPrice must include branding with standard departmental logo.\n\nSize: S- 5XL","1387-4:2017","EACH"]

{"sheet":"CATEGORY C","index":2,"n_rows":11,"n_cols":25,"rows_kept":11,"merged":[[1,1,1,5],[1,6,2,24],[2,1,2,5],[3,0,3,2],[3,6,3,12],[3,13,3,15],[3,16,3,21],[3,22,3,24]]}
["Bidder's Name:_________________________________"]
[null,"THE MANUFACTURE, SUPPLY AND DELIVERY OF PERSONAL PROTECTIVE EQUIPMENT AND EQUIPMENT TO THE EASTERN CAPE PROVINCIAL GOVERNMENT FOR THE PERIOD OF 36 MONTHS\nCONTRACT MANAGER:___Zilindile Bobani_______________________:E-MAIL: zilindile.bobani@ectreasury.gov.za"]
[null,"NOTES REGARDING PRICING:\n1. Bidders to complete the excel version. This is a compulsory requirements.\n2. Bidders must refer to item description and specifications before completing the pricing schedule.\n3. The quoted prices Must be inclusive of 15% VAT and all the other related costs (Direct and Indirect costs). No additional costs will considered post award.\n4. Prices  MUST be completed for all the items \n5. Indices - List measurable indices/factors that contribute to cost escalation.\n6. All prices are subjects to negotiation with preffered and shortlisted bidder prior to signing of the contract.\n7. Offer to be valid for 180 days from closing date of bid.\n8. Bidders to ensure that Colunm Q indicates TRUE. If FALSE mean bidder inserted a full stop on the price.\n9. Bidders to complete only the YELLOW Colunms\n"]
["ITEM INFORMATION",{"$nulls":4},"PRICE","COST COMPONENT",{"$nulls":9},"FABRIC MANUFACTURE",{"$nulls":5},"GARMENT INFORMATION"]
["No","ITEM CODE","ITEM DESCRIPTION","STANDARD/S","UNIT OF MEASURE","PRICE PER UNIT INCLUSIVE OF 15% VAT","D1 – IMPORTED RAW MATERIAL / FINISHED PRODUCT","D2 - LOCAL RAW MATERIAL / FINISHED PRODUCTS (IF APPLICABLE)","D3 – LABOUR","D4 – TRANSPORT","D5 – OVERHEADS ","D6 – OTHER","TOTAL (COST COMPONENTS MUST ADD UP TO 100%)","Manufacture name/third party name","COUNTRY OF ORIGIN","VERIFICATION NUMBER ","NAME OF FABRIC/COMBINATION OF FABRICS","FABRIC COMPLIANCE CERTIFICATE/LETTER FROM FABRIC MANUFACUTURE ATTACHED? YES OR NO","NAME OF FABRIC MANUFACTURE/MILL","CAPABILITY REPORT OF FABRIC MANUFACTURE/MILL ATTACHED? YES OR NO","FABRIC OR COMPONENT OF FABRIC IMPORTED?  YES OR NO","DTIC EXEMPTION LETTER ATTACHED? YES OR NO","ITEM DECLARED ON ANNEXURE C OF SBD 6.2? YES OR NO","GARMENT ITEM PROCURED FROM OWN FACTORY (RESPONSE -  YES OR NO)","GARMENT ITEM APPEARING ON CAPABILITY REPORT? YES OR NO"]
[0,null,"Fabric",null,null,{"v":2,"d":"R2.00"},60,null,15,10,15,null,100,null,"SA",true]
[34,"PVC APRON","PVC APRON – blood and fat; heavy duty; cotton twill tape neck and back straps\nheat pressed eyelets for extra strength; apron length and width – 108cm x 69cm\nidea for use in food preparation, butchery, or abattoir type environments.\nColours:  white, yellow and green \nSize:One size fits all","N/A","EACH ",{"$nulls":7},{"$f":"G7+H7+I7+J7+K7+L7","v":0},null,null,{"$f":"ISNUMBER(F7)","v":false}]
[35,"BRICK HANDLING GLOVE LEATHER\nFULL CHROME TANNED LEATHER OF FLESH SPLIT – SUBSTANCE 1.3MM TO 1.5MM.\n1.5MM RUBBER\nTHREAD\nNO. 25 POLYFIL CORE SPUN THREAD DLING GLOVE","BRICK HANDLING GLOVE LEATHER\nFULL CHROME TANNED LEATHER OF FLESH SPLIT – SUBSTANCE 1.3MM TO 1.5MM.\n1.5MM RUBBER\nTHREAD\nNO. 25 POLYFIL CORE SPUN THREAD DLING GLOVES- The glove is manufactured from chrome split leather \nfrom tip of middle finger to seam between hand portion and cuff - 20cm.along seam between hand portion and cuff across narrowest part of cuff - 13cm.across palm at crotch of thumb - 12. cm.\nfrom tip of index finger to crotch between thumb and index finger - 11.5 cm. from tip of thumb to crotch of thumb - 7.5 cm.\nspecification: sabs 316/latest, 1(a) marking: in addition to clause 7.2.1 and 7.2.2 of sans316 the item number 35/201031 are required.\n\nSize:S – 2XL","316:2002","Pair",{"$nulls":7},{"$f":"G8+H8+I8+J8+K8+L8","v":0},null,null,false]
[36,"GENERAL PURPOSE GLOVES","GENERAL PURPOSE GLOVES- Material: Leather; the glove is manufactured from chrome split leather and is fully lined with a cotton liner. the tips of the fingers; the thumb, the insert of the middle and ring fingers; the seam from the tip of the index finger to the cuff join as well as the cuff join on the back of the hand are welted; from tip of middle finger to seam between hand portions and cuff - 22.5cm along seam between hand portion and cuff across narrowest part of cuff - 14.5cm across palm at crotch of thumb - 14 cm; \nfrom the tip of index finger to crotch between thumb and index finger - 13 cm; from tip of thumb to crotch of thumb - 8cm; overall length of glove - 42.5cm with back hand and cuff split.All materials used as well as workmanship complies with the requirements of the SA Bureau of Standard's specification for industrial leather protective wear.\n\nSizes:S - 2 XL","316:2002","Pair",{"$nulls":7},0,null,null,false]
[37,"GLOVES WELDERS’ ;HEAT RESISTANT,400MM,RED","GLOVES WELDERS’ ;HEAT RESISTANT,400MM,RED- Material: Leather full chrome tanned leather of flesh split - substance 1.3mm to 1.5mm.\nLining: Cotton liner in hand; cotton or polyester cotton material lining on inside of cuff; thread:25 polyfil core spun thread.\n\nThe glove is manufactured from chrome split leather and is fully lined with a cotton liner. the tips of the fingers, the thumb, the insert of the middle and ring fingers, the seam from the tip of the index finger to the cuff join as well as the cuff join on the back of the hand are welted. From tip of middle finger to seam between hand portion and cuff - 22.5cm.along seam between hand portion and cuff across narrowest part of cuff - 14.5cm. across palm at crotch of thumb - 14 cm.From tip of index finger to crotch between thumb and index finger -13 cm. from tip of thumb to crotch of thumb - 8cm.Overall length of glove - 42.5cm;all materials used as well as workmanship complies with the requirements of the SA Bureau of Standard's specification for industrial leather protective wear.\nSIZE:S – 2XL","316:2002","Pair",{"$nulls":7},0,null,null,false]
[38,"ELETRICAL INSULATED GLOVES","ELETRICAL INSULATED GLOVES- Material: made from high-quality rubber or synthetic materials; non – slip; long and short sleeve;are specialized protective gear used by electricians and workers in high – voltage machine operations. each glove must be electrically tested and issued with examination certificate; classws defining voltage - class 0 > 0 (5kv), low voltage, class 1 > 1 (10kv), high voltage, class 2 > 2 (20kv), high voltage, class 3 > 3 (30kv), high voltage; these gloves provide insulation to protect against electric shock during electrical work.\nSizes: 8, 9, 10    ","N/A","Pair",{"$nulls":7},0,null,null,false]

{"sheet":"CATEGORY D","index":3,"n_rows":22,"n_cols":25,"rows_kept":22,"merged":[[0,0,0,5],[1,1,1,5],[1,6,2,24],[2,1,2,5],[3,0,3,2],[3,6,3,12],[3,13,3,15],[3,16,3,21],[3,22,3,24],[6,1,9,1],[10,1,12,1],[13,1,17,1],[18,1,19,1],[20,1,21,1]]}
["Bidder's Name:_________________________________"]
[null,"THE MANUFACTURE, SUPPLY AND DELIVERY OF PERSONAL PROTECTIVE EQUIPMENT , SAFETY WEAR AND CLOTHING TO THE EASTERN CAPE PROVINCIAL GOVERNMENT FOR THE PERIOD OF 36 MONTHS\nCONTRACT MANAGER:___Zilindile Bobani_______________________:E-MAIL: zilindile.bobani@ectreasury.gov.za"]
[null,"NOTES REGARDING PRICING:\n1. Bidders to complete the excel version. This is a compulsory requirements.\n2. Bidders must refer to item description and specifications before completing the pricing schedule.\n3. The quoted prices Must be inclusive of 15% VAT and all the other related costs (Direct and Indirect costs). No additional costs will considered post award.\n4. Prices  MUST be completed for all the items \n5. Indices - List measurable indices/factors that contribute to cost escalation.\n6. All prices are subjects to negotiation with preffered and shortlisted bidder prior to signing of the contract.\n7. Offer to be valid for 180 days from closing date of bid.\n8. Bidders to ensure that Colunm Q indicates TRUE. If FALSE mean bidder inserted a full stop on the price.\n9. Bidders to complete only the YELLOW Colunms\n"]
["ITEM INFORMATION",{"$nulls":4},"PRICE","COST COMPONENT",{"$nulls":9},"FABRIC MANUFACTURE",{"$nulls":5},"GARMENT INFORMATION"]
["No","ITEM CODE","ITEM DESCRIPTION","STANDARD/S","UNIT OF MEASURE","PRICE PER UNIT INCLUSIVE OF 15% VAT","D1 – IMPORTED RAW MATERIAL / FINISHED PRODUCT","D2 - LOCAL RAW MATERIAL / FINISHED PRODUCTS (IF APPLICABLE)","D3 – LABOUR","D4 – TRANSPORT","D5 – OVERHEADS ","D6 – OTHER","TOTAL (COST COMPONENTS MUST ADD UP TO 100%)","Manufacture name/third party name","COUNTRY OF ORIGIN","VERIFICATION NUMBER ","NAME OF FABRIC/COMBINATION OF FABRICS","FABRIC COMPLIANCE CERTIFICATE/LETTER FROM FABRIC MANUFACUTURE ATTACHED? YES OR NO","NAME OF FABRIC MANUFACTURE/MILL","CAPABILITY REPORT OF FABRIC MANUFACTURE/MILL ATTACHED? YES OR NO","FABRIC OR COMPONENT OF FABRIC IMPORTED?  YES OR NO","DTIC EXEMPTION LETTER ATTACHED? YES OR NO","ITEM DECLARED ON ANNEXURE C OF SBD 6.2? YES OR NO","GARMENT ITEM PROCURED FROM  THIRD PARTY FACTORY OR OWN FACTORY (RESPONSE - THIRD PARTY NAME OR OWN NAME)","GARMENT ITEM APPEARING ON CAPABILITY REPORT OF THIRD PARTY OR OWN? YES OR NO"]
[0,null,"Fabric",null,null,{"v":2,"d":"R2.00"},60,null,15,10,15,null,100,null,"SA",true]
[39,"MEN SAFETY FOOTWEAR: A (BOOTS)","Light  Boot\nGender Male:\n\nMaterial: Genuine leather upper with split leather collar and tongue (1.9mm – 2.1mm); eva padded collar and padded bellows tongue for enhanced comfort and ankle support; heel stiffener for shape longevity; d-ring for quick lacing and release; braided nylon laces with central core for additional strength; reflective inserts for increased visibility in low light; TPU heel support structure for reinforcement and additional strength.\nAnti-static in-sock: Durable memory foam with ultra-cushioning comfort and quick drying properties; treated with an antibacterial and anti-fungal treatment; excellent moisture wicking properties; washable and breathable; anti-static stitching.\nLining: The vamp lining is made from non-woven synthetic fibre for enhanced comfort and breathability.\nSteel toe cap: To withstand an impact load of 200 joules; shank reinforcement for additional arch support; double density pu/ pu; the boot can withstand temperatures up to 95°c; the boot has SRA rated slip resistance; the boot is anti-static.\nColour: Black / Brown \nSizes: 3-12","20345:2014","Pair",{"$nulls":7},{"$f":"G7+H7+I7+J7+K7+L7","v":0},null,null,{"$f":"ISNUMBER(F7)","v":false}]
[40,null,"Medium Boot\nGender: Male\n\nMaterial: Smooth buffalo full-grain leather 1.9mm – 2.1mm; elastic side gussets and 2 pull-tabs for ease of entry and exit of the boot; heel stiffener for shape longevity.\nAnti-static in-sock:The top sock is made from a durable polyester material that offers abrasion resistance and is quick drying in nature; the top sock is anti-bacterial and antistatic; the top sock contains anti-static stitching.\nLining: The vamp lining is made from non-woven synthetic fibre for enhanced comfort and breathability.\nSteel toe cap: To withstand an impact load of 200 joules;shank reinforcement for additional arch support; double density pu/pu; dual density pu/pu sole ;the boot can withstand temperatures up to 95°c;the boot has sra rated slip-resistance; the boot is anti-static.\nColour :Black /Brown \nSizes:3-12","20345:2014","Pair",{"$nulls":7},{"$f":"G8+H8+I8+J8+K8+L8","v":0},null,null,false]
[41,null,"Heavy Duty Boot\nGender: Male\n\nMaterial: Black / Brown waxy pull-up genuine buffalo leather 2.0-2.2mm; elastic side gussets.\nLining: Synthetic lining white non-woven vamp lining; webbed pull-tabs for ease of entry and exit of the boot. elastic side gussets;\nSteel toe cap: 200 joules;vibram ® super work self-cleaning rubber sole enhanced grip and safety with drainage channels and extended contact area optimum balance between traction and durability oil and fuel resistant non-conductive sole tested to achieve 20kv high voltage electrical resistance heat resistant up to 3000c;flexible low-density polyurethane midsole.\nColour: Black / Brown\nSizes:3-12","20345:2014","Pair",{"$nulls":7},0,null,null,false]
[42,null,"Mens Boots with lace\n\nThe Razorback Steel Toe Cap boot can tackle all kinds of terrain, making it ideal for  the outdoor worker requiring that extra bit of durability ISO 20345 approved steel toe cap manufactured with a double layer of leather (2.2mm full grain leather, lined with 1.6mm calf leather); A steel shank between the insole board and sole offers extra support and stability ; Insole board is secured to the upper with a double stitched 2.2mm braided nylon cord ; Accommodates a wider foot with a roomy toe box ; Sole is made from a genuine rubber ;Can be resoled. \nSABS APPROVED.\n\nSizes :3-12","NRCS/9002/291684/0299","Pair",{"$nulls":7},0,null,null,false]
[43,"MEN SAFETY FOOTWEAR: B (SHOES)","Light Duty Shoe\nGender: Male\n\nMaterial: Genuine leather upper with split leather collar and tongue 1.9mm – 2.1mm; eva padded collar and padded bellows tongue for enhanced comfort and ankle support; heel stiffener for shape longevity; d-ring for quick lacing and release; braided nylon laces with central core for additional strength; reflective inserts for increased visibility in low light; tpu heel support structure for reinforcement and additional strength.\nAnti-static in-sock: Durable memory foam with ultra-cushioning comfort and quick drying properties; treated with an antibacterial and anti-fungal treatment; excellent moisture wicking properties; washable and breathable; anti-static stitching.\nLining: The vamp lining is made from non-woven synthetic fibre for enhanced comfort and breathability.\nSteel toe cap: To withstand an impact load of 200 joules;shank reinforcement for additional arch support.\nDensity: Double density pu/ pu; the boot can withstand temperatures up to 95°c; \nthe shoe has SRA rated slip resistance; the shoe is anti-static.\nColour: Black / Brown \nSizes:3-12","20345:2014","Pair",{"$nulls":7},0,null,null,false]
[44,null,"Medium duty shoe\nGender Male:\n\nMaterial: Smooth full grain buffalo leather upper for enhanced durability; padded collar for improved comfort; padded bellows tongue for added comfort and enhanced defense against debris entering the shoe; 2 sets lace guides & 2 sets ghillie loops core for additional strength; heel stiffener for shape longevity.\nAnti-static in-sock: The top sock is made from a durable polyester material that offers abrasion resistance and is quick-drying in nature; the top sock is antibacterial and anti-static properties to the material; the top sock contains anti-static stitching.\nLining: The vamp lining is made from non-woven synthetic fibre for enhanced comfort and breathability.\nSteel toe cap: To withstand an impact load of 200 joules;shank reinforcement for additional arch support.\nDensity: Double density pu/pu; built in tpu inserts for additional support and torsion control; the shoe can withstand temperatures up to 95°c; the shoe has SRA rated slip resistance; the shoe is anti-static.\nColour: Black / Brown\nSize 3,4,5,6,7,8,9,10,11,12.\n","20345:2014","Pair",{"$nulls":7},0,null,null,false]
[45,null,"Heavy Duty Shoes\nGender: Male\n\nMaterial: Full grain waxy leather 2.0 - 2.2mm; increased girth area as per podiatry specifications; padded collar and tongue from soft nappa leather for improved comfort ;4 pair loops and ski hooks with corrosion-resistant gunmetal coating; braided lace from polyester yarn and central core for additional strength.\n\nthe energiser poron / eva top sock is from a combination of polyester and wool, with excellent perspiration absorbency, bonded to a layer of eva; the poron inserts at the ball and heel of the top sock offer optimum support where it is needed most, ensuring dynamic impact compression and a gentle rebound with every step • the top sock responds to weight and temperature, moulding itself to the foot, resulting in fewer aches and pains; the top sock has been treated with *ultra-fresh to impart hygienic and anti-bacterial properties to the material.\n\nLining :The quarter lining is from an impregnated non-woven ferrabelle material ; the vamp lining is from a hi-tech needle-fibre blend with excellent perspiration absorbency and treated with *ultrafresh to impart hygienic and anti-bacterial properties to the material.\nSteel toe cap :Extra-wide fitting ; to withstand an impact load of 200 joules;\nthe sole is from dual density pu / vibram rubber; the midsole is from a low density flexible polyurethane with a shore hardness of 0.40 & 0.5;the outer sole is from vibram rubber with a src slip resistance rating ;a shank reinforcement is moulded into the midsole for additional arch support • the sole can withstand temperatures up to 300°c radiant and direct heat • the shoe is non-conductive • the boot comes standard with an anti-penetration midsole • the boot soles have been subjected to voltage of 20kv ac rms for 60 seconds. \n\nColour: Black / Brown \nSizes:3-12\n","20345:2014","Pair",{"$nulls":7},0,null,null,false]
[46,"\nSAFETY FOOTWEAR:\nLADIES A \n(BOOTS)","Light Duty Boot\nGender: Female\n\nMaterial: Barton print water buffalo hides cut from 2.0mm – 2.2mm; padded collar from a PVC  stretch back material with a soft latex rubber padding for enhanced comfort and support; padded tongue from a soft pvc coated fabric for improved comfort;4 pair d-ring lace-up with corrosion-resistant gunmetal coating; braided lace from polyester yarn and central core for additional strength.\nThe in-sock is from an anti-static non-woven material.\nLining: The quarter lining is from an industrial ferrabelle non-woven material; the vamp lining is from a hi-tech needle-fibre blend with excellent perspiration absorbency.\nSteel toe cap • To withstand an impact load of 200 joules; the sole is from a dual density pu/pu;the midsole is from a low density flexible polyurethane with a shore hardness of 0.45mm – 0.50mm;the outer sole is from polyurethane with a shore hardness of 0.64mm – 0.65mm.A shank reinforcement is moulded into the midsole for additional arch support. this shoe can withstand temperatures of up to 95˚c ; this shoe is anti-static.\nColour: Black / Brown \nSizes:2-10","20345:2014","Pair",{"$nulls":7},{"$f":"G14+H14+I14+J14+K14+L14","v":0},null,null,false]
[47,null,"Medium Duty Boot\nGender: Female\nMedium Duty Boot\nGender: Female\nMaterial: Cut from 2.0 – 2.2mm smooth full grain leather;20mm padded collar from synthetic material for enhanced comfort and support;10mm padded tongue from synthetic material for improved comfort ; 3 pair rust resistant d-ring lace-up with 1 pair hooks for quick removal of boot; braided lace from polyester yarn and central core for additional strength.\nThe in-sock is from an anti-static non-woven material; the energiser top sock is from a combination of polyester and wool, with excellent perspiration absorbency; the top sock features eva foam inserts on the ball and heel area for enhanced comfort and shock absorption.\nLining: the quarter lining is from an industrial ferrabelle non-woven material; the vamp lining is from a hi-tech needle-fibre blend with excellent perspiration absorbency.\nSteel toe cap: to withstand an impact load of 200 joules.\nthe sole is from a dual density pu/pu; the midsole is from a low density flexible polyurethane with a shore hardness of 0.45mm – 0.50mm;the outer sole is from polyurethane with a shore hardness of 0.64mm – 0.65mm.\na shank reinforcement is moulded into the midsole for additional arch support; this boot can withstand temperatures of up to 95 c; this boot has a src slip-resistance rating; this boot is anti-static.\n\nColour: Black / Brown \nSizes:2-10","20345:2014","Pair",{"$nulls":7},0,null,null,false]
[48,null,"Heavy Duty Boot\nGender: Female\n\nMaterial: Cut from 2.0 – 2.2mm smooth full grain leather;15mm padded collar from mesh fabric for enhanced comfort; breathability and support;10mm padded tongue from mesh fabric for improved comfort and breathability;7 pair rust resistant eyelet lace-up; braided lace from polyester yarn and central core for additional strength.\n\nThe in-sock is from an anti-static non-woven material • the energiser top sock is from a combination of polyester and wool, with excellent perspiration absorbency ;the top sock features eva foam inserts on the ball and heel area for enhanced comfort and shock absorption.\nLining: the quarter lining is from an industrial ferrabelle non-woven material • the vamp lining is from a hi-tech needle-fibre blend with excellent perspiration absorbency and is treated with ultra-fresh* to impart hygienic and anti-bacterial properties to the material.\nSteel toe cap: to withstand an impact load of 200 joules.\nThe sole is from a dual density pu/pu • the midsole is from a low density flexible polyurethane with a shore hardness of 0.45mm – 0.50mm • the outer sole is from polyurethane with a shore hardness of 0.64mm – 0.65mm; a shank reinforcement is moulded into the midsole for additional arch support; this shoe can withstand temperatures of up to 95c; this shoe is anti-static; if required, this book is available with an apt midsole.\n\nColour: Black / Brown \nSizes:2-10","20345:2014","Pair",{"$nulls":7},0,null,null,false]
[49,null,"Ladies Boots: without lace\n\nThe Razorback Steel Toe Cap boot can tackle all kinds of terrain, making it ideal for the outdoor worker requiring that extra bit of durability ISO 20345 approved steel toe cap manufactured with a double layer of leather (2.2mm full grain leather, lined with 1.6mm calf leather); A steel shank between the insole board and sole offers extra support and stability ; Insole board is secured to the upper with a double stitched 2.2mm braided nylon cord ; Accommodates a wider foot with a roomy toe box ; Sole is made from a genuine rubber ;Can be resoled. \n\nSABS APPROVED.\n\nSizes :2-10","NRCS/9002/291684/0299","Pair",{"$nulls":7},0,null,null,false]
[50,null,"Ladies boots without lace\n\nStockman Toe cap boot can tackle all kinds of terrain, making it ideal for the outdoor worker requiring that extra bit of durability ; ISO  20345 approved steel toe cap; manufactured with a double layer of leather (2.2mm full grain leather, lined with 1.6mm calf leather); a steel shank between the insole board and sole offers extra support and stability;insole board is secured to the upper with a double stitched 2.2mm braided nylon cord; accommodates a wider foot with a roomy toe box; sole is made from a genuine rubber; can be resoled. \nSABS approved.\n\nSize:2-10","NRCS/9002/291684/0299","Pair",{"$nulls":7},0,null,null,false]
[51,"SAFETY FOOTWEAR:\nLADIES B\n(SHOES)","Light duty shoe\nGender: Female\n\nMaterial: Cut from 2.0 – 2.2mm Full Grain Leather; 20mm Padded collar for enhanced comfort and support; Elastic side gussets for ease of entry and exit of the shoe.\nThe in-sock is from an anti-static non-woven material; The Energiser top sock is from a combination of polyester and wool, with excellent perspiration absorbency; The top sock features EVA foam inserts on the ball and heel area for enhanced comfort and shock absorption.\nLining: The quarter lining is from an industrial ferrabelle non-woven material • The vamp lining is from a hi-tech needle-fibre blend with excellent perspiration absorbency.\nNon-steel toe cap: If required, this shoe is available with a steel toe cap – 51003.\nThe sole is from a single density Polyurethane with a shore hardness of 0.64mm – 0.65mm ;\nA shank reinforcement is moulded into the midsole for additional arch support • This shoe can withstand temperatures of up to 95C • This shoe is anti-static.\n\nColour:Black /Brown \nSize;2-10","20345:2014","Pair",{"$nulls":7},0,null,null,false]
[52,null,"Heavy duty shoe\nGender: Female\nMaterial:Cut from 2.0 – 2.2mm smooth Full Grain Leather;15mm padded collar from mesh fabric for enhanced comfort, breathability and support ;10mm padded tongue from mesh fabric for improved comfort and breathability ;5 pair rust resistant eyelet lace-up;Braided lace from polyester yarn and central core for additional strength.\nThe in-sock is from an anti-static non-woven material; the energiser top sock is from a combination of polyester and wool, with excellent perspiration absorbency.\nThe top sock features EVA foam inserts on the ball and heel area for enhanced comfort and shock absorption.\nLining: The quarter lining is from an industrial ferrabelle non-woven material; The vamp lining is from a hi-tech needle-fibre blend with excellent perspiration absorbency.\nSteel toe cap: To withstand an impact of 200 joules.\nThe sole is from a dual density PU/PU • The midsole is from a low density flexible Polyurethane with a shore hardness of 0.45mm – 0.50mm; The outer sole is from Polyurethane with a shore hardness of 0.64mm – 0.65mm; This shoe can withstand temperatures of up to 95C; This shoe is anti-static; This shoe comes standard with an APT midsole; If required, this shoe is available without an APT midsole.\nColour: Black /Brown \nSize: 2-10","20345:2014"]
[53,"BOOTS KNEE ;\nGUM SAFETY, PVC","Gum safety\nGender: Both male and female\n\nMaterial: Polyvinyl Chloride Boots with steel toe caps, knee; type gum safety, footwear; environmental protection oil protection; calf length.\nColour: Black / White\nSizes: 2-12","20345:2014","Pair",{"$nulls":7},0,null,null,false]
[54,null,"Gum safety\ngender: both male and female\n\nMaterial: UV stabilized PVC to maintain colour durability; virgin PVC nonslip hard-wearing sole with strong grip; superior sock lining in 100% polyester for quick dry and durability; flexible tread pattern to eliminate surface build-up; moulded wool innersole for comfort; elastic side gussets gives additional support and comfort.\nColour: Black / White\nSize 2-12","20345:2014","Pair",{"$nulls":7},0,null,null,false]

{"sheet":"CATEGORY E","index":4,"n_rows":21,"n_cols":32,"rows_kept":21,"merged":[[0,0,0,12],[1,1,1,12],[1,13,1,31],[2,1,2,12],[2,13,2,31],[3,0,3,2],[3,5,3,12],[3,13,3,19],[3,20,3,22],[3,23,3,28],[3,29,3,31]]}
["Bidder's Name:_________________________________"]
[null,"THE MANUFACTURE, SUPPLY AND DELIVERY OF PERSONAL PROTECTIVE EQUIPMENT, SAFETY WEAR AND CLOTHING TO THE EASTERN CAPE PROVINCIAL GOVERNMENT FOR THE PERIOD OF 36 MONTHS\nCONTRACT MANAGER:___Zilindile Bobani_______________________:E-MAIL: zilindile.bobani@ectreasury.gov.za"]
[null,"NOTES REGARDING PRICING:\n1. Bidders to complete the excel version. This is a compulsory requirements.\n2. Bidders must refer to item description and specifications before completing the pricing schedule.\n3. The quoted prices Must be inclusive of 15% VAT and all the other related costs (Direct and Indirect costs). No additional costs will considered post award.\n4. Prices  MUST be completed for all the items \n5. Indices - List measurable indices/factors that contribute to cost escalation.\n6. All prices are subjects to negotiation with preffered and shortlisted bidder prior to signing of the contract.\n7. Offer to be valid for 180 days from closing date of bid.\n8. Bidders to ensure that Colunm Q indicates TRUE. If FALSE mean bidder inserted a full stop on the price.\n9. Bidders to complete only the YELLOW Colunms\n"]
["ITEM INFORMATION",{"$nulls":4},"PRICE",{"$nulls":7},"COST COMPONENT",{"$nulls":9},"FABRIC MANUFACTURE",{"$nulls":5},"GARMENT INFORMATION"]
["No","ITEM CODE","ITEM DESCRIPTION","STANDARD/S","UNIT OF MEASURE","PRICE PER UNIT INCLUSIVE OF 15% VAT (Size- S)","PRICE PER UNIT INCLUSIVE OF 15% VAT (Size- M)","PRICE PER UNIT INCLUSIVE OF 15% VAT (Size- L)","PRICE PER UNIT INCLUSIVE OF 15% VAT (Size- XL)","PRICE PER UNIT INCLUSIVE OF 15% VAT (Size- XXL)","PRICE PER UNIT INCLUSIVE OF 15% VAT (Size- XXXL)","PRICE PER UNIT INCLUSIVE OF 15% VAT (Size- XXXXL)","PRICE PER UNIT INCLUSIVE OF 15% VAT (Size- XXXXXL)","D1 – IMPORTED RAW MATERIAL / FINISHED PRODUCT","D2 - LOCAL RAW MATERIAL / FINISHED PRODUCTS (IF APPLICABLE)","D3 – LABOUR","D4 – TRANSPORT","D5 – OVERHEADS ","D6 – OTHER","TOTAL (COST COMPONENTS MUST ADD UP TO 100%)","Manufacture name/third party name","COUNTRY OF ORIGIN","VERIFICATION NUMBER ","NAME OF FABRIC/COMBINATION OF FABRICS","FABRIC COMPLIANCE CERTIFICATE/LETTER FROM FABRIC MANUFACUTURE ATTACHED? YES OR NO","NAME OF FABRIC MANUFACTURE/MILL","CAPABILITY REPORT OF FABRIC MANUFACTURE/MILL ATTACHED? YES OR NO","FABRIC OR COMPONENT OF FABRIC IMPORTED?  YES OR NO","DTIC EXEMPTION LETTER ATTACHED? YES OR NO","ITEM DECLARED ON ANNEXURE C OF SBD 6.2? YES OR NO","GARMENT ITEM PROCURED FROM  THIRD PARTY FACTORY OR OWN FACTORY (RESPONSE - THIRD PARTY NAME OR OWN NAME)","GARMENT ITEM APPEARING ON CAPABILITY REPORT OF THIRD PARTY OR OWN? YES OR NO"]
[0,null,"Fabric",null,null,{"v":2,"d":"R2.00"},{"v":2,"d":"R2.00"},{"v":2,"d":"R2.00"},{"v":2,"d":"R2.00"},{"v":2,"d":"R2.00"},{"v":2,"d":"R2.00"},{"v":2,"d":"R2.00"},{"v":2,"d":"R2.00"},60,null,15,10,15,null,100,null,"SA",true]
[56,"FREEZER JACKETS","Long Length jacket\n\nFabric: Water resistant  Oxford fabric 210D nylon outer; thermo-guard padding; one breast pocket and 2 hip patch pocket with monza flaps; chunky /nylon zip; elasticated cuffs to retain warmth. Silver / lime /orange 50mm reflective Tape all around the waistline and arms. \nDesign: hood, collar; detachable hood /concealed hood; Padding: single-200g\nLining: quilted supper fine lining / fleece \n\nOPTIONS:\nColours: two tone: lime/navy, orange/navy\nPrice must include branding with standard departmental logo.\n\nSizes: S-5XL","N/A","EACH ",{"$nulls":14},{"$f":"N7+O7+P7+Q7+R7+S7","v":0},null,null,{"$f":"SUMPRODUCT(--ISNUMBER(F7:G7:H7:I7:J7:K7:L7:M7))>0","v":false}]
[57,"FREEZER JACKETS","Long Length jacket\nFabric: Water resistant Oxford fabric 210D nylon outer; thermo-guard padding; one breast pocket and 2 hip patch pocket with monza flaps; chunky /nylon zip; elasticated cuffs to retain warmth.NO REFLECTIVE TAPE \nDesign: hood, collar; detachable hood /concealed hood; Padding: single-200g\n\nLining: quilted supper fine lining / fleece \n\nOPTIONS:\nColours: two tone: lime/navy, orange/navy \nPrice must include branding with standard departmental logo.\n\nSizes: S-5XL","N/A","EACH ",{"$nulls":14},{"$f":"N8+O8+P8+Q8+R8+S8","v":0},null,null,{"$f":"SUMPRODUCT(--ISNUMBER(F8:G8:H8:I8:J8:K8:L8:M8))>0","v":false}]
[58,"FREEZER JACKETS","Short Length jacket\n\nFabric: Water resistant Oxford fabric 210D nylon outer; Inner Fabric - Quilted Padded Micro Breathable Fleece, Zip off sleeves, Two hand pocket, Two zipped chest pockets, Elasticated cuffs and waistline/ hem.\nDesign: hood, collar; detachable hood /concealed hood; Padding: single-200g\nLining: quilted supper fine lining / fleece \n\nOPTIONS:\nColours: Plain lime ,navy and orange \nPrice must include branding with standard departmental logo.\n\nSizes: S-5XL","N/A","EACH ",{"$nulls":14},0,null,null,{"$f":"SUMPRODUCT(--ISNUMBER(F9:G9:H9:I9:J9:K9:L9:M9))>0","v":false}]
[59,"BUNNY /BOMBER JACKET","100 % cotton CJ54  \nOuter Fabric - 100% Cotton, Inner Fabric - Quilted Padded Micro Breathable Fleece, Zip off sleeves, Two hand pocket, Two zipped chest pockets, Double silver 50mm reflective tape on arms, chest and back, Ribbed / Elasticated cuffs and waistline, Colours ; Black, Navy, Orange, Yellow.Price must include branding with standard departmental logo.\nSizes - S to 5XL, \n","N/A","EACH ",{"$nulls":14},0,null,null,{"$f":"SUMPRODUCT(--ISNUMBER(F10:G10:H10:I10:J10:K10:L10:M10))>0","v":false}]
[60,"BUNNY /BOMBER JACKET","100 % cotton D59 (Flame Retardant/Acid Resistant) \nOuter Fabric - 100% Cotton, Inner Fabric - Quilted Padded Micro Breathable Fleece, Zip off sleeves, Two hand pocket, Two zipped chest pockets, Double silver 50mm reflective tape(Flame Retardant/Acid Resistant)  on arms, chest and back, Ribbed / Elasticated cuffs and waistline, Colours ; Black, Navy, Orange, Yellow.Price must include branding with standard departmental logo.\nSizes - S to 5XL, \n","N/A","EACH ",{"$nulls":14},0,null,null,{"$f":"SUMPRODUCT(--ISNUMBER(F11:G11:H11:I11:J11:K11:L11:M11))>0","v":false}]
[61,"BUNNY /BOMBER JACKET","100 % cotton TCM257 COMBAT\nOuter Fabric - 100% Cotton, Inner Fabric - Quilted Padded Micro Breathable Fleece, Zip off sleeves, Two hand pocket, Two zipped chest pockets, NO REFLECTIVE TAPE, Ribbed / Elasticated cuffs and waistline, Colours ; Black, Navy, Stone, Navy Blue\nSizes - S to 5XL, \nPrice must include branding with standard departmental logo.","N/A","EACH ",{"$nulls":14},0,null,null,{"$f":"SUMPRODUCT(--ISNUMBER(F12:G12:H12:I12:J12:K12:L12:M12))>0","v":false}]
[62,"SOFT SHELL JACKET ","SOFT SHELL JACKET-COMPOSITION • Outer: 125gsm laminated, 95% Polyester, 5% Elastane.\nInner: 100% Polyester Micro Polar Fleece 190gsm , light weight, thermal & water resistant jacket with a micro polar fleece lining; a water repellent rating of 1000mm keeps you dry while the breathable membrane with a rating of 3000g regulates airflow and maintains warmth; high collar with a reverse zip closure & adjustable cuffs is an innovatively developed single-layer fabric utilising the latest multi-dimensional technology ensuring thermal protection, water resistance, agility, comfort and breathability; must have side inside pockets.Price must include branding with standard departmental logo.\nSizes: S - 5XL ","1397:200","EACH ",{"$nulls":14},0,null,null,{"$f":"SUMPRODUCT(--ISNUMBER(F13:G13:H13:I13:J13:K13:L13:M13))>0","v":false}]
[63,"SAFETY VEST","High visibility vest\nFabric Water resistant 210D nylon outer;  Clear on black top entry plastic pouch ID pocket; nylon zip  with metal slider  safety stitched side seams; polyester black binding all around the armhole and centre front  ;Double 50mm silver reflective tape around the waistline\nSO20471 and SANS50471 compliant fabric \nColours: orange, lime,  pink , navy blue and red\nSizes: S to 5XL\nPrice must include branding with standard departmental logo.","SO20471 and SANS50471 ","EACH ",{"$nulls":14},0,null,null,{"$f":"SUMPRODUCT(--ISNUMBER(F14:G14:H14:I14:J14:K14:L14:M14))>0","v":false}]
[64,"THREE QUARTER WINDBRAKER","Polyester quilted micro active  breathable fabric; Colour: all, mass per square meter: 150g, waterproof rating: 3000mm, breathability: 3000 g/m per 24 hours,\nName badge positioning: centralised on the right chest of the windbreaker.Price must include branding with standard departmental logo.\nLining: quilted supper fine lining / fleece ","N/A","EACH ",{"$nulls":14},0,null,null,{"$f":"SUMPRODUCT(--ISNUMBER(F15:G15:H15:I15:J15:K15:L15:M15))>0","v":false}]
[65,"THREE QUARTER WINDBRAKER","THREE-QUARTER WINDBREAKER- Polyester waterproof and windproof yet breathable fabric;\nColour: all, mass per square meter: 150g, waterproof rating: 3 000mm, breathability: 3000 g/m² per 24 hours, \nName badge positioning: centralised on the right chest of the windbreaker.Price must include branding with standard departmental logo.\nSize: S-5XL","N/A","EACH ",{"$nulls":14},0,null,null,{"$f":"SUMPRODUCT(--ISNUMBER(F16:G16:H16:I16:J16:K16:L16:M16))>0","v":false}]
[66,"RAINCOAT, UNISEX","RAINCOAT, UNISEX  - Extra length garment with back vent; cleared side panels in hood; heat sealed seams for improved water resistance; concealed elastic storm cuffs; stowaway hood with draw cord; two large concealed front pockets long sleeve; calf length with hood.Price must include branding with standard departmental logo.\nFabric: Polyester PVC. \n\nColour: All\nSize: S-5XL","N/A","EACH ",{"$nulls":14},0,null,null,{"$f":"SUMPRODUCT(--ISNUMBER(F17:G17:H17:I17:J17:K17:L17:M17))>0","v":false}]
[67,"EMS UTILITY JACKET ","EMS UTILITY JACKET- Manufactured from high visibility, highly durable nylon and nylon mesh;\nRadio pocket on left of jacket; reflective strips on pockets and back of the jacket; \nSmall Reflective Star of Life can be placed on left or right front jacket;\n2 large pockets with zips and two small pockets with velcro snaps located in front;\nLarge heavy duty front zip; mesh base provides extra comfort in hot conditions;\nReflective qualification patch available for rear of jacket – Choice of Basic Life Support; Intermediate Life Support, Advance Life Support Paramedic, Emergency Care Technician, Emergency Care Practitioner and Doctor.Price must include branding with standard departmental logo.\nColors: Red, Navy blue and Black.\nSizes: S - 5XL","N/A","EACH ",{"$nulls":14},0,null,null,{"$f":"SUMPRODUCT(--ISNUMBER(F18:G18:H18:I18:J18:K18:L18:M18))>0","v":false}]
[68,"JACKET, DRI-MAC, UNISEX, HOODED","JACKET, DRI-MAC, UNISEX, HOODED- Towelling inner lining; stow away hood (in collar closure);  water resistant; wind resistant; draw string waist to protect from wind; 2 side entry pockets; knit wrist cuff.Price must include branding with standard departmental logo.\nSizes: S-5XL\nColour: All","N/A","EACH ",{"$nulls":14},0,null,null,{"$f":"SUMPRODUCT(--ISNUMBER(F19:G19:H19:I19:J19:K19:L19:M19))>0","v":false}]
[69,"RAIN SUITS","RAIN SUITS- Oxfords 210D rubberized; elasticated cuffs; drawstring hood; front pockets with flaps; fully elasticated waist options: reflective tape.\nColours: navy, orange\nSize:S – 5XL","N/A","EACH ",{"$nulls":14},0,null,null,{"$f":"SUMPRODUCT(--ISNUMBER(F20:G20:H20:I20:J20:K20:L20:M20))>0","v":false}]
[70,"SAFETY REFLECTIVE COLLAR JACKET","High visibility jacket with collar Zip closure on the front\nFabric Water resistant 210D nylon outer; ID pocket; nylon zip with metal slider safety    stitched side seams with removable sleeve.\nClear on black top entry plastic pouch/ID pocket\nDouble 50mm silver reflective tape around the waistline\nSO20471 and SANS50471 compliant fabric\nColour : red/lime or blue/lime or  orange /lime\nSizes: S to 5XL\nPrice must include branding with standard departmental logo.","SO20471 and SANS50471","EACH ",{"$nulls":14},0,null,null,{"$f":"SUMPRODUCT(--ISNUMBER(F21:G21:H21:I21:J21:K21:L21:M21))>0","v":false}]

{"sheet":"CATEGORY F","index":5,"n_rows":15,"n_cols":25,"rows_kept":15,"merged":[[0,0,0,5],[1,1,1,5],[1,6,2,24],[2,1,2,5],[3,0,3,2],[3,6,3,12],[3,13,3,15],[3,16,3,21],[3,22,3,24]]}
["Bidder's Name:_________________________________"]
[null,"THE MANUFACTURE, SUPPLY AND DELIVERY OF PERSONAL PROTECTIVE EQUIPMENT, SAFETY WEAR AND CLOTHING TO THE EASTERN CAPE PROVINCIAL GOVERNMENT FOR THE PERIOD OF 36 MONTHS\nCONTRACT MANAGER:___Zilindile Bobani_______________________:E-MAIL: zilindile.bobani@ectreasury.gov.za"]
[null,"NOTES REGARDING PRICING:\n1. Bidders to complete the excel version. This is a compulsory requirements.\n2. Bidders must refer to item description and specifications before completing the pricing schedule.\n3. The quoted prices Must be inclusive of 15% VAT and all the other related costs (Direct and Indirect costs). No additional costs will considered post award.\n4. Prices  MUST be completed for all the items \n5. Indices - List measurable indices/factors that contribute to cost escalation.\n6. All prices are subjects to negotiation with preffered and shortlisted bidder prior to signing of the contract.\n7. Offer to be valid for 180 days from closing date of bid.\n8. Bidders to ensure that Colunm Q indicates TRUE. If FALSE mean bidder inserted a full stop on the price.\n9. Bidders to complete only the YELLOW Colunms\n"]
["ITEM INFORMATION",{"$nulls":4},"PRICE","COST COMPONENT",{"$nulls":9},"FABRIC MANUFACTURE",{"$nulls":5},"GARMENT INFORMATION"]
["No","ITEM CODE","ITEM DESCRIPTION","STANDARD/S","UNIT OF MEASURE","PRICE PER UNIT INCLUSIVE OF 15% VAT","D1 – IMPORTED RAW MATERIAL / FINISHED PRODUCT","D2 - LOCAL RAW MATERIAL / FINISHED PRODUCTS (IF APPLICABLE)","D3 – LABOUR","D4 – TRANSPORT","D5 – OVERHEADS ","D6 – OTHER","TOTAL (COST COMPONENTS MUST ADD UP TO 100%)","Manufacture name/third party name","COUNTRY OF ORIGIN","VERIFICATION NUMBER ","NAME OF FABRIC/COMBINATION OF FABRICS","FABRIC COMPLIANCE CERTIFICATE/LETTER FROM FABRIC MANUFACUTURE ATTACHED? YES OR NO","NAME OF FABRIC MANUFACTURE/MILL","CAPABILITY REPORT OF FABRIC MANUFACTURE/MILL ATTACHED? YES OR NO","FABRIC OR COMPONENT OF FABRIC IMPORTED?  YES OR NO","DTIC EXEMPTION LETTER ATTACHED? YES OR NO","ITEM DECLARED ON ANNEXURE C OF SBD 6.2? YES OR NO","ARMENT ITEM PROCURED FROM  THIRD PARTY FACTORY OR OWN FACTORY (RESPONSE - THIRD PARTY NAME OR OWN NAME) ","GARMENT ITEM APPEARING ON CAPABILITY REPORT OF THIRD PARTY OR OWN? YES OR NO"]
[0,null,"Fabric",null,null,{"v":2,"d":"R2.00"},60,null,15,10,15,null,100,null,"SA",true]
[71,"BEANIE","BEANIE- 100% acrylic yarn, stockinet or plain knit stitch, long enough to turn-up. fabric:  \ncolour\nSizes: all: \nHat, wide brim, summer, unisex, combat customs specification: cbcu 017 version 01.2/may 2017sizes: all colour: army green/sage","N/A","EACH ",{"$nulls":7},{"$f":"G7+H7+I7+J7+K7+L7","v":0},null,null,{"$f":"ISNUMBER(F7)","v":false}]
[72,"HAT, WIDE BRIM, SUMMER","HAT, WIDE BRIM, SUMMER- Hat, wide brim, summer, unisex, combat customs specification: cbcu 017 version 01.2/may 2017sizes: all colour: army green/sage\npeak cap: composition: 55% polyester & 45% wool, colour: kalahari sand, mass per square meter: 260g - 270g, size range: all\n\n","N/A","EACH ",{"$nulls":7},{"$f":"G8+H8+I8+J8+K8+L8","v":0},null,null,{"$f":"ISNUMBER(F8)","v":false}]
[73,"CAPS","Caps- peak cap: composition: 55% polyester & 45% wool, colour: kalahari sand, mass per square meter: 260g - 270g, size range: all","N/A","EACH ",{"$nulls":7},0,null,null,false]
[74,"CRICKET HAT","CRICKET HAT - 100% cotton; highly durable; robust stitching; sweat absorbent rushed cotton, inner head liner, light weight, high tear resistant, wide circular brim.\n\nColours: All\nSizes:S-XL","1387-4:2017","EACH ",{"$nulls":7},0,null,null,false]
[75,"FLOPPY HAT","Floppy Hat- 100% cotton; highly durable; neat durable stitching; sweat absorbent; light weight;\nhigh tear resistant ; soft narrow brim.\n\nColours: All\nSizes:S-XL","1387-4:2017","EACH ",{"$nulls":7},0,null,null,false]
[76,"HARD HAT HEADLIGHT","Rechargeable LED Headlight Zoom Head Lamp With High Lumens, 5+2 Modes,\nNon-vented industrial hard hat with UV (Ultraviolet); inhibitor protector protects against impact; penetration and exposuret ohigh voltage conductors; Dielectric protection upt o 20,000 volts (phase to ground) ; 4-point quick fit suspension with double straps for shock absorption; adjustable Fast-Trac I rachet suspension fixed stitched sweat band ;side slotsfor integration with face and hearing protective\nequipment ;mediumshell, that is fully adjustable to fit head sizesbetween52cm - 64cm(centimetres) SANS1397:200.","1397:200","EACH ",{"$nulls":7},0,null,null,false]
[77,"HARD HAT","HARD HAT- Non-vented industrial hard hat with UV (Ultraviolet); inhibitor protector protects against impact; penetration and exposure to high voltage conductors; Dielectric protection up to 20,000 volts (phase to ground) ; 4-point quick fit suspension with double straps for shock absorption ; adjustable Fast-Trac III rachet suspension fixed stitched sweat band ;side slots for integration with face and hearing protective equipment ;medium shell, that is fully adjustable to fit head sizes between 52cm – 64cm (centimetres) SANS1397:200.\nColour: white; blue; pink; yellow; red; green\nSABS approved  ","1397:200","EACH ",{"$nulls":7},0,null,null,false]
[78,"SUNVISOR SYSTEM","SUNVISOR SYSTEM- TSS Twin Shield Sun visor system; ECE22.05R safety certified; aerodynamically designed construction; micro metric chin strap safety system; plush moisture wicking inner liner; multiflow ventilation port system; anti fog Pinlock prepared outer visor; tinted visor sold separately; sold standard with clear visor.\n\nColour : white,orange,yellow material plastic.\n","N/A","EACH ",{"$nulls":7},0,null,null,false]
[79,"BUSHMASTER WITH CLEAR VISOR","BUSHMASTER WITH CLEAR VISOR- Twin point mounted cups; low risk of entanglement on machinery; hearing protection for extended periods; visor can easily flip up and down; designed with comfort in mind; durable self-adjusting ABS cups; close fitting wire headband for comfort ; large cups for high noise levels together with soft foam cushions .","N/A","EACH ",{"$nulls":7},0,null,null,false]

{"sheet":"CATEGORY G","index":6,"n_rows":17,"n_cols":25,"rows_kept":17,"merged":[[0,0,0,5],[1,1,1,5],[2,1,2,5],[3,0,3,2],[3,6,3,12],[3,13,3,15],[3,16,3,21],[3,22,3,24],[6,1,8,1],[9,1,11,1]]}
["Bidder's Name:_________________________________"]
[null,"THE MANUFACTURE, SUPPLY AND DELIVERY OF PERSONAL PROTECTIVE EQUIPMENT, SAFETY WEAR AND CLOTHING TO THE EASTERN CAPE PROVINCIAL GOVERNMENT FOR THE PERIOD OF 36 MONTHS\nCONTRACT MANAGER:___Zilindile Bobani_______________________:E-MAIL: zilindile.bobani@ectreasury.gov.za"]
[null,"NOTES REGARDING PRICING:\n1. Bidders to complete the excel version. This is a compulsory requirements.\n2. Bidders must refer to item description and specifications before completing the pricing schedule.\n3. The quoted prices Must be inclusive of 15% VAT and all the other related costs (Direct and Indirect costs). No additional costs will considered post award.\n4. Prices  MUST be completed for all the items \n5. Indices - List measurable indices/factors that contribute to cost escalation.\n6. All prices are subjects to negotiation with preffered and shortlisted bidder prior to signing of the contract.\n7. Offer to be valid for 180 days from closing date of bid.\n8. Bidders to ensure that Colunm Q indicates TRUE. If FALSE mean bidder inserted a full stop on the price.\n9. Bidders to complete only the YELLOW Colunms\n"]
["ITEM INFORMATION",{"$nulls":4},"PRICE","COST COMPONENT",{"$nulls":9},"FABRIC MANUFACTURE",{"$nulls":5},"GARMENT INFORMATION"]
["No","ITEM CODE","ITEM DESCRIPTION","STANDARD/S","UNIT OF MEASURE","PRICE PER UNIT INCLUSIVE OF 15% VAT","D1 – IMPORTED RAW MATERIAL / FINISHED PRODUCT","D2 - LOCAL RAW MATERIAL / FINISHED PRODUCTS (IF APPLICABLE)","D3 – LABOUR","D4 – TRANSPORT","D5 – OVERHEADS ","D6 – OTHER","TOTAL (COST COMPONENTS MUST ADD UP TO 100%)","Manufacture name/third party name","COUNTRY OF ORIGIN","VERIFICATION NUMBER ","NAME OF FABRIC/COMBINATION OF FABRICS","FABRIC COMPLIANCE CERTIFICATE/LETTER FROM FABRIC MANUFACUTURE ATTACHED? YES OR NO","NAME OF FABRIC MANUFACTURE/MILL","CAPABILITY REPORT OF FABRIC MANUFACTURE/MILL ATTACHED? YES OR NO","FABRIC OR COMPONENT OF FABRIC IMPORTED?  YES OR NO","DTIC EXEMPTION LETTER ATTACHED? YES OR NO","ITEM DECLARED ON ANNEXURE C OF SBD 6.2? YES OR NO","GARMENT ITEM PROCURED FROM OWN FACTORY (RESPONSE - YES OR NO)","GARMENT ITEM APPEARING ON CAPABILITY REPORT? YES OR NO"]
[0,null,"Fabric",null,null,{"v":2,"d":"R2.00"},60,null,15,10,15,null,100,null,"SA",true]
[80,"EAR PLUGS- HEARING PROTECTION","EAR PLUGS- HEARING PROTECTION \n\nNoise Clipper, Decibel (Db) 85-120 Db; \nmaterial : acrylic;features set filter, furnished items cleaning cloth and wax remover; package type pouch; personal hearing protector set for maximum attenuation. specification sabs 1451-2:1988 \nColour : various colours.","N/A","PAIR",{"$nulls":7},{"$f":"G7+H7+I7+J7+K7+L7","v":0},null,null,{"$f":"ISNUMBER(F7)","v":false}]
[81,null,"Plug, ear; type compression, material rubber, dimensions 600 connection cord mm, special features nnr 25 db, package type container with lid; specification number sabs 1451/1988 part 2; supplied in pairs.","N/A","PAIR",{"$nulls":7},{"$f":"G8+H8+I8+J8+K8+L8","v":0},null,null,false]
[82,null,"Protector, Hearing; Type Tactical Pro, Decibel (Db) 26 Db; Material Plastic/Steel; Features: Adjustable Volume, Package Type Heavy Duty Carrying Bag; P/N: Mt15h7f SvPeltor; Folding Headband.\n\nColour: Black\t","N/A","EACH ",{"$nulls":7},0,null,null,false]
[83,"GOGGLES","Goggles, Industrial; type brazing and cutting; lens material Polycarbonate, lens colour clear, features anti fog lens and UV protection, package type plastic envelope; reference horizontal and vertical adjustable temples and integrated side shields; extended cheek and brow protection; supplied with lanyard item 35203600; (Sans 1404-1993) En 166","1404-1993","EACH ",{"$nulls":7},0,null,null,false]
[84,null,"Goggle Industrial; type brazing and cutting, Lens material Polycarbonate, lens color grey; features anti fog lens and UV protection; package type plastic envelope; horizontal & vertical adjustable temples & integrated side shield; extended cheek & brow protection; to fit over prescription spectacles; to supply with lanyard item 35203600; (Sans 1404-1993)En 166","1404-1993","EACH ",{"$nulls":7},0,null,null,false]
[85,null,"Goggle frames: Manufactured from Polypropylene or similar material that is\npliable enough to seal against the facial contours and maintain rigidity to hold\nthe lens securely in position, even under pressure; the grade of material\nused in the frame must not cause irritation or allergic reaction when in contact with the skin of the user and allows the penetration of light and vision through the frame; direct venting refers to openings /gaps on the frame to allow airflow to prevent lenses from fogging; indirect venting is achieved by designing the goggle frames to limit “direct airflow” (each manufacturer has its own method of achieving this).","SANS 1404,\nEyeprotectors\nfor\nindustrial and\nnon-industrial\nuse\nSANS 50166","EACH ",{"$nulls":7},0,null,null,false]
[86,"SAFETY HARNESS","SAFETY HARNESS- Polyester full body harness with adjustable chest & leg straps; includes a dorsal D-ring for fall arrest; ideally placed sit strap for extended comfort; equipped with lanyard keepers for placement of free lanyards; weight capacity of 140kg (incl. tools); includes shock absorbing lanyard (DFA-PN361N). This is suitable for use in\nconstruction industry; cleaning; painting & building maintenance; scaffholding applications; refineries; oil rigs.\n\nSize: one size\nMeets the requirements of the European PPE Regulation (EU) 2016/425","EN 361:2002 and EN 355:2002","EACH ",{"$nulls":7},0,null,null,false]
[87,"LANYARDS","Lanyard safety, industrial type; webbing double lanyard; dimension LX1.75M ,material tabular webbing, hook material aluminium connection pylon hook.To pack shock absorber, lanyard to be adjustable,24 kilo newton aluminium screw gate karbiner,25 millimetertibulatr webbing C/W coated buckles\nColour: Olive Green \t","EN 50354,50355&362","EACH ",{"$nulls":7},0,null,null,false]
[88,"MASK AIR FLITERING ; DISPOSABLE","MASK AIR FILTERING; DISPOSABLE\nFFP1- Mask, Air filtering; Type disposable, Media for which designed electrostatically charged filter, Fastening method two elastic head bands, Mask material filtering fibre, \nsize one fit all, Filter material particulates, package type box of 20; for protection against Silica and asbestos dust. The width of the Harness straps to be at least 8 mm.","5014:2003","EACH ",{"$nulls":7},{"$f":"G15+H15+I15+J15+K15+L15","v":0},null,null,false]
[89,"FPP3- DUST MASK WITH VALVE","FPP3-DUST MASK WITH VALVE - Provide protection against solid and liquid aerosols and smoke containing the following materials such as : Asbestos, calcium carbonate, china clay, cement, cellulose, sulphur, cotton, flour, carbon, ferrous metals, hardwood, silicon, plastic, vegetable oils and mineral oils, copper, aluminium, bacteria, fungi, mould spores and mycobacterium tuberculosis (T.B.), chromium, manganese, lead paint, nickel, platinum, strychnine, metal dust and smoke.","5014:2003","EACH ",{"$nulls":7},0,null,null,false]
[90,"KNEE PROTECTOR","KNEE PROTECTOR-External knee protector with support straps ;outer casing adopts pe rubber shell, which has superior wear resistance, shock resistance and good cushioning effect; mushroom buckle, safe to prevent falling off ; the interface of the binding band is detachable, easy to change, fixing strap good elasticity ; the fabric is soft and skin-friendly with a mesh design on the front, good breathability, it is cooler and more comfortable during exercise; ergonomic design, flexible activity, no sense of restraint thigh circumference (8cm up the knee): 35cm to 45cm; calf circumference (10cm down the knee): 38cm to 48cm; material: 50% nylon/30% polyester/8% spandex/7% eva/5% polyethylene. ","N/A","PAIR",{"$nulls":7},0,null,null,false]

{"sheet":"BRANDING","index":7,"n_rows":28,"n_cols":3,"rows_kept":28}
["NB: Bidders are required to also quote for BRANDING for the following:"]
[]
["EMBROIDERY"]
[]
["SIZE","STITCHES","UNIT PRICE"]
[]
["POCKET SIZE","6000-10000","R"]
["POCKET SIZE","10000-18000","R"]
["CAP / HAT SIZE","8000-12000","R"]
["CAP / HAT SIZE","5000-8000","R"]
["A4 SIZE","15000-19000","R"]
[]
["SCREEN PRINT ONE COLOUR"]
[]
["SIZE","MEASUREMENTS","UNIT PRICE"]
[]
["POCKET SIZE","12cm x 4cm","R"]
["CAP/HAT SIZE","9cm x 4cm","R"]
["A4 SIZE","25cm x 20cm","R"]
[]
["SCREEN PRINT FULL COLOUR (UP TO 8 COLOURS)"]
[]
[]
["SIZE","MEASUREMENTS","UNIT PRICE"]
[]
["POCKET SIZE","12cm x 4cm","R"]
["CAP/HAT SIZE","9cm x 4cm","R"]
["A4 SIZE","25cm x 20cm","R"]

{"sheet":"Sheet1","index":8,"n_rows":0,"n_cols":0,"rows_kept":0,"hidden":true}